fUST/lending_fUST_20250603
["ID","MTS","AMOUNT","RATE_DAILY","PERIOD"]
[363915139,1748923842445,-440.0,0.0001726,2]
[363915140,1748923842455,-440.0,0.0001726,2]
[363915141,1748923842465,-440.0,0.0001726,2]
[363915142,1748923842475,-1574.72,0.0001726,2]
[363915143,1748923842485,-440.0,0.0001726,2]
[363915144,1748923842495,-281.89756893,0.0001726,2]
[363915145,1748923842505,-440.0,0.0001726,2]
[363915146,1748923842514,-1596.37,0.0001726,2]
[363915147,1748923842524,-440.0,0.0001726,2]
[363915148,1748923842534,-909.41,0.0001726,2]
[363915149,1748923842544,-1584.27,0.0001726,2]
[363915150,1748923842557,-440.0,0.0001726,2]
[363915151,1748923842567,-931.22,0.0001726,2]
[363915152,1748923842577,-1347.42,0.0001726,2]
[363915153,1748923842588,-694.71,0.0001726,2]
[363915154,1748923842598,-440.0,0.0001726,2]
[363915155,1748923842607,-570.89,0.0001726,2]
[363915156,1748923842617,-455.6,0.0001726,2]
[363915157,1748923842628,-430.0,0.0001726,2]
[363915158,1748923842638,-440.0,0.0001726,2]
[363915159,1748923842648,-550.28,0.0001726,2]
[363915160,1748923842657,-644.57,0.0001726,2]
[363915161,1748923842667,-440.0,0.0001726,2]
[363915162,1748923842677,-440.0,0.0001726,2]
[363915163,1748923842686,-440.0,0.0001726,2]
[363915164,1748923842696,-333.9,0.0001726,2]
[363915165,1748923842706,-440.0,0.0001726,2]
[363915166,1748923842716,-658.84,0.0001726,2]
[363915167,1748923842725,-1350.0,0.0001726,2]
[363915168,1748923842735,-440.0,0.0001726,2]
[363915170,1748923842745,-500.0,0.00017278,2]
[363915171,1748923842754,-1473.3717005,0.00017383,2]
[363915172,1748923842764,-895.58804343,0.0001741,2]
[363915173,1748923842774,-504.90978063,0.00017447,2]
[363915174,1748923842783,-1020.41100821,0.00017483,2]
[363915175,1748923842793,-500.0,0.00017522,2]
[363915177,1748923842803,-4258.19,0.00017533,2]
[363915178,1748923842815,-440.0,0.00017534,2]
[363915179,1748923842824,-440.0,0.00017534,2]
[363915180,1748923842834,-440.0,0.00017534,2]
[363915181,1748923842843,-440.0,0.00017534,2]
[363915182,1748923842853,-1574.72,0.00017534,2]
[363915183,1748923842863,-440.0,0.00017534,2]
[363915184,1748923842873,-440.0,0.00017534,2]
[363915185,1748923842882,-1596.37,0.00017534,2]
[363915187,1748923842892,-440.0,0.00017534,2]
[363915188,1748923842903,-909.41,0.00017534,2]
[363915189,1748923842915,-1584.27,0.00017534,2]
[363915190,1748923842924,-440.0,0.00017534,2]
[363915191,1748923842934,-931.22,0.00017534,2]
[363915192,1748923842943,-1347.42,0.00017534,2]
[363915193,1748923842953,-694.71,0.00017534,2]
[363915194,1748923842963,-440.0,0.00017534,2]
[363915195,1748923842973,-570.89,0.00017534,2]
[363915196,1748923842982,-455.6,0.00017534,2]
[363915197,1748923842992,-440.0,0.00017534,2]
[363915198,1748923843001,-550.28,0.00017534,2]
[363915199,1748923843011,-644.57,0.00017534,2]
[363915200,1748923843020,-440.0,0.00017534,2]
[363915201,1748923843029,-440.0,0.00017534,2]
[363915202,1748923843040,-440.0,0.00017534,2]
[363915203,1748923843050,-440.0,0.00017534,2]
[363915204,1748923843060,-658.84,0.00017534,2]
[363915205,1748923843071,-1350.0,0.00017534,2]
[363915206,1748923843081,-440.0,0.00017534,2]
[363915207,1748923843090,-1473.3717005,0.00017624,2]
[363915208,1748923843100,-4258.19,0.00017807,2]
[363915209,1748923843110,-440.0,0.00017808,2]
[363915210,1748923843120,-440.0,0.00017808,2]
[363915211,1748923843130,-440.0,0.00017808,2]
[363915212,1748923843140,-440.0,0.00017808,2]
[363915213,1748923843150,-1574.72,0.00017808,2]
[363915214,1748923843160,-440.0,0.00017808,2]
[363915215,1748923843169,-440.0,0.00017808,2]
[363915216,1748923843179,-1596.37,0.00017808,2]
[363915217,1748923843189,-909.41,0.00017808,2]
[363915218,1748923843200,-440.0,0.00017808,2]
[363915219,1748923843210,-1584.27,0.00017808,2]
[363915220,1748923843220,-440.0,0.00017808,2]
[363915221,1748923843230,-931.22,0.00017808,2]
[363915222,1748923843239,-1347.42,0.00017808,2]
[363915223,1748923843249,-694.71,0.00017808,2]
[363915224,1748923843259,-440.0,0.00017808,2]
[363915225,1748923843271,-570.89,0.00017808,2]
[363915226,1748923843281,-455.6,0.00017808,2]
[363915228,1748923843291,-440.0,0.00017808,2]
[363915230,1748923843301,-550.28,0.00017808,2]
[363915231,1748923843311,-644.57,0.00017808,2]
[363915232,1748923843322,-440.0,0.00017808,2]
[363915233,1748923843332,-440.0,0.00017808,2]
[363915234,1748923843342,-440.0,0.00017808,2]
[363915235,1748923843352,-440.41,0.00017808,2]
[363915236,1748923843362,-658.84,0.00017808,2]
[363915237,1748923843373,-1350.0,0.00017808,2]
[363915238,1748923843382,-440.0,0.00017808,2]
[363915239,1748923843392,-518.95928991,0.00017826,2]
[363915240,1748923843402,-1473.3717005,0.00017866,2]
[363915241,1748923843413,-420.0,0.00017963,2]
[363915242,1748923843424,-261.942965,0.00018052,2]
[363915243,1748923843433,-1680.0,0.00018052,2]
[363915244,1748923843443,-506.7984358,0.0001807,2]
[363915245,1748923843453,-380.16,0.00018072,3]
[363915246,1748923843463,-4258.19,0.00018081,2]
[363915247,1748923843473,-558.4,0.00018082,2]
[363915248,1748923843483,-414.36,0.00018082,2]
[363915249,1748923843493,-440.0,0.00018082,2]
[363915250,1748923843503,-402.06,0.00018082,2]
[363915251,1748923843512,-440.0,0.00018082,2]
[363915252,1748923843522,-1574.72,0.00018082,2]
[363915253,1748923843533,-440.0,0.00018082,2]
[363915254,1748923843543,-1596.37,0.00018082,2]
[363915255,1748923843555,-909.41,0.00018082,2]
[363915256,1748923843566,-440.0,0.00018082,2]
[363915257,1748923843575,-1584.27,0.00018082,2]
[363915258,1748923843584,-440.0,0.00018082,2]
[363915259,1748923843595,-931.22,0.00018082,2]
[363915261,1748923843605,-1347.42,0.00018082,2]
[363915262,1748923843614,-694.71,0.00018082,2]
[363915263,1748923843624,-440.0,0.00018082,2]
[363915264,1748923843633,-570.89,0.00018082,2]
[363915265,1748923843644,-455.6,0.00018082,2]
[363915266,1748923843654,-366.55791971,0.00018082,2]
[363915267,1748923843664,-550.28,0.00018082,2]
[363915268,1748923843673,-644.57,0.00018082,2]
[363915269,1748923843683,-440.0,0.00018082,2]
[363915270,1748923843693,-440.0,0.00018082,2]
[363915271,1748923843702,-440.0,0.00018082,2]
[363915272,1748923843712,-658.84,0.00018082,2]
[363915273,1748923843722,-1350.0,0.00018082,2]
[363915274,1748923843731,-1473.3717005,0.00018107,2]
[363915275,1748923843741,-2096.16961245,0.0001814,2]
[363915276,1748923843750,-1473.3717005,0.00018348,2]
[363915277,1748923843760,-500.0,0.00018354,2]
[363915278,1748923843770,-397.20609611,0.00018354,2]
[363915279,1748923843779,-502.39679297,0.00018354,2]
[363915280,1748923843789,-569.52211228,0.00018354,2]
[363915281,1748923843799,-189.19200381,0.00018354,2]
[363915282,1748923843809,-213.63082784,0.00018354,2]
[363915283,1748923843819,-500.0,0.00018354,2]
[363915284,1748923843829,-500.0,0.00018354,2]
[363915285,1748923843838,-181.24868553,0.00018354,2]
[363915286,1748923843848,-500.0,0.00018354,2]
[363915287,1748923843857,-500.0,0.00018354,2]
[363915288,1748923843868,-523.83625823,0.00018354,2]
[363915289,1748923843878,-434.80179135,0.00018354,2]
[363915290,1748923843888,-451.88842151,0.00018354,2]
[363915291,1748923843898,-500.0,0.00018354,2]
[363915292,1748923843908,-500.0,0.00018354,2]
[363915293,1748923843918,-4258.19,0.00018355,2]
[363915294,1748923843928,-440.0,0.00018356,2]
[363915295,1748923843938,-440.0,0.00018356,2]
[363915296,1748923843948,-1574.72,0.00018356,2]
[363915297,1748923843956,-440.0,0.00018356,2]
[363915298,1748923843965,-1596.37,0.00018356,2]
[363915299,1748923843974,-909.41,0.00018356,2]
[363915300,1748923843982,-440.0,0.00018356,2]
[363915301,1748923843992,-1584.27,0.00018356,2]
[363915302,1748923844002,-440.0,0.00018356,2]
[363915303,1748923844012,-931.22,0.00018356,2]
[363915304,1748923844022,-1347.42,0.00018356,2]
[363915305,1748923844032,-694.71,0.00018356,2]
[363915306,1748923844042,-440.0,0.00018356,2]
[363915307,1748923844051,-570.89,0.00018356,2]
[363915308,1748923844061,-455.6,0.00018356,2]
[363915309,1748923844073,-550.28,0.00018356,2]
[363915310,1748923844082,-644.57,0.00018356,2]
[363915311,1748923844092,-440.0,0.00018356,2]
[363915312,1748923844101,-440.0,0.00018356,2]
[363915313,1748923844111,-440.0,0.00018356,2]
[363915314,1748923844120,-658.84,0.00018356,2]
[363915315,1748923844130,-1350.0,0.00018356,2]
[363915316,1748923844140,-842.5625,0.00018389,2]
[363915317,1748923844150,-12670.76136593,0.00018389,2]
[363915318,1748923844159,-160.0,0.00018389,2]
[363915319,1748923844169,-423.63107087,0.00018389,2]
[363915320,1748923844179,-229.42821335,0.00018389,2]
[363915321,1748923844189,-160.0,0.00018389,2]
[363915322,1748923844200,-212.86879254,0.00018389,2]
[363915323,1748923844210,-160.0,0.00018389,2]
[363915324,1748923844219,-160.0,0.00018389,2]
[363915325,1748923844229,-160.0,0.00018389,2]
[363915326,1748923844239,-160.0,0.00018389,2]
[363915327,1748923844249,-895.58804343,0.00018481,2]
[363915328,1748923844259,-1473.3717005,0.0001859,2]
[363915329,1748923844269,-4258.19,0.00018629,2]
[363915330,1748923844278,-440.0,0.0001863,2]
[363915331,1748923844287,-440.0,0.0001863,2]
[363915332,1748923844297,-1574.72,0.0001863,2]
[363915333,1748923844306,-440.0,0.0001863,2]
[363915334,1748923844316,-1596.37,0.0001863,2]
[363915335,1748923844325,-909.41,0.0001863,2]
[363915336,1748923844335,-440.0,0.0001863,2]
[363915337,1748923844345,-1584.27,0.0001863,2]
[363915338,1748923844354,-440.0,0.0001863,2]
[363915339,1748923844363,-931.22,0.0001863,2]
[363915340,1748923844373,-1347.42,0.0001863,2]
[363915341,1748923844382,-694.71,0.0001863,2]
[363915342,1748923844392,-440.0,0.0001863,2]
[363915343,1748923844402,-570.89,0.0001863,2]
[363915344,1748923844411,-455.6,0.0001863,2]
[363915345,1748923844420,-550.28,0.0001863,2]
[363915346,1748923844431,-644.57,0.0001863,2]
[363915347,1748923844440,-440.0,0.0001863,2]
[363915348,1748923844449,-440.0,0.0001863,2]
[363915349,1748923844458,-440.0,0.0001863,2]
[363915350,1748923844468,-658.84,0.0001863,2]
[363915351,1748923844477,-1350.0,0.0001863,2]
[363915352,1748923844487,-1473.3717005,0.00018831,2]
[363915353,1748923844496,-1759.81617934,0.000189,2]
[363915354,1748923844506,-4258.19,0.00018903,2]
[363915355,1748923844515,-4258.19,0.00018903,2]
[363915356,1748923844524,-4258.19,0.00018903,2]
[363915357,1748923844533,-4258.19,0.00018903,2]
[363915358,1748923844543,-4258.32106245,0.00018903,2]
[363915359,1748923844555,-440.0,0.00018904,2]
[363915360,1748923844565,-440.0,0.00018904,2]
[363915361,1748923844575,-1574.72,0.00018904,2]
[363915362,1748923844584,-440.0,0.00018904,2]
[363915363,1748923844595,-1596.37,0.00018904,2]
[363915364,1748923844604,-909.41,0.00018904,2]
[363915365,1748923844613,-161.44192728,0.00018904,2]
[363915366,1748923844623,-1584.27,0.00018904,2]
[363915367,1748923844633,-440.0,0.00018904,2]
[363915368,1748923844644,-931.22,0.00018904,2]
[363915369,1748923844653,-694.71,0.00018904,2]
[363915370,1748923844663,-1347.42,0.00018904,2]
[363915371,1748923844672,-440.0,0.00018904,2]
[363915372,1748923844682,-570.89,0.00018904,2]
[363915373,1748923844692,-455.6,0.00018904,2]
[363915374,1748923844701,-550.28,0.00018904,2]
[363915375,1748923844711,-644.57,0.00018904,2]
[363915376,1748923844721,-440.0,0.00018904,2]
[363915377,1748923844730,-440.0,0.00018904,2]
[363915378,1748923844740,-440.0,0.00018904,2]
[363915379,1748923844749,-658.84,0.00018904,2]
[363915380,1748923844758,-1350.0,0.00018904,2]
[363915381,1748923844768,-1473.3717005,0.00019072,2]
[363915382,1748923844777,-439.475391,0.00019178,2]
[363915383,1748923844786,-157.833019,0.00019178,2]
[363915384,1748923844795,-440.0,0.00019178,2]
[363915385,1748923844804,-440.0,0.00019178,2]
[363915386,1748923844814,-440.0,0.00019178,2]
[363915387,1748923844824,-440.0,0.00019178,2]
[363915388,1748923844833,-440.0,0.00019178,2]
[363915389,1748923844842,-440.0,0.00019178,2]
[363915390,1748923844852,-440.0,0.00019178,2]
[363915391,1748923844861,-440.0,0.00019178,2]
[363915392,1748923844871,-440.0,0.00019178,2]
[363915393,1748923844880,-440.0,0.00019178,2]
[363915394,1748923844891,-440.0,0.00019178,2]
[363915395,1748923844901,-440.0,0.00019178,2]
[363915396,1748923844910,-440.0,0.00019178,2]
[363915397,1748923844919,-1574.72,0.00019178,2]
[363915398,1748923844928,-440.0,0.00019178,2]
[363915399,1748923844938,-1596.37,0.00019178,2]
[363915400,1748923844947,-909.41,0.00019178,2]
[363915401,1748923844957,-1584.27,0.00019178,2]
[363915402,1748923844966,-440.0,0.00019178,2]
[363915403,1748923844976,-931.22,0.00019178,2]
[363915404,1748923844985,-694.71,0.00019178,2]
[363915405,1748923844995,-1347.42,0.00019178,2]
[363915406,1748923845005,-440.0,0.00019178,2]
[363915407,1748923845014,-570.89,0.00019178,2]
[363915408,1748923845024,-455.6,0.00019178,2]
[363915409,1748923845034,-550.28,0.00019178,2]
[363915410,1748923845154,-644.57,0.00019178,2]
[363915411,1748923845165,-440.0,0.00019178,2]
[363915412,1748923845175,-283.34549287,0.00019178,2]
[363915413,1748923845184,-440.0,0.00019178,2]
[363915414,1748923845193,-658.84,0.00019178,2]
[363915415,1748923845203,-500.0,0.00019178,2]
[363915416,1748923845213,-318.86061749,0.00019178,2]
[363915417,1748923845222,-1350.0,0.00019178,2]
[363915418,1748923845232,-223.155668,0.00019178,2]
[363915419,1748923845242,-1473.3717005,0.00019314,2]
[363915420,1748923845252,-2096.16961245,0.00019393,2]
[363915421,1748923845262,-440.0,0.00019452,2]
[363915422,1748923845272,-440.0,0.00019452,2]
[363915423,1748923845282,-500.0,0.00019452,2]
[363915424,1748923845291,-440.0,0.00019452,2]
[363915425,1748923845301,-1574.72,0.00019452,2]
[363915426,1748923845311,-1596.37,0.00019452,2]
[363915427,1748923845322,-440.0,0.00019452,2]
[363915428,1748923845332,-909.41,0.00019452,2]
[363915429,1748923845341,-1584.27,0.00019452,2]
[363915430,1748923845351,-440.0,0.00019452,2]
[363915431,1748923845361,-931.22,0.00019452,2]
[363915432,1748923845371,-694.71,0.00019452,2]
[363915433,1748923845382,-1347.42,0.00019452,2]
[363915434,1748923845393,-440.0,0.00019452,2]
[363915435,1748923845403,-570.89,0.00019452,2]
[363915436,1748923845412,-455.6,0.00019452,2]
[363915437,1748923845422,-206.43159862,0.00019452,2]
[363915438,1748923845431,-500.0,0.00019452,2]
[363915439,1748923845441,-151.0,0.00019452,2]
[363915440,1748923845452,-550.28,0.00019452,2]
[363915441,1748923845462,-644.57,0.00019452,2]
[363915442,1748923845472,-440.0,0.00019452,2]
[363915443,1748923845482,-440.0,0.00019452,2]
[363915444,1748923845493,-658.84,0.00019452,2]
[363915445,1748923845502,-1350.0,0.00019452,2]
[363915446,1748923845512,-500.0,0.00019479,2]
[363915447,1748923845522,-350.73397981,0.00019479,2]
[363915448,1748923845531,-500.0,0.00019507,2]
[363915449,1748923845541,-184.82167423,0.00019534,2]
[363915450,1748923845554,-895.58804343,0.00019553,2]
[363915451,1748923845564,-1473.3717005,0.00019555,2]
[363915452,1748923845574,-177.92407056,0.00019626,2]
[363915453,1748923845584,-441.479,0.00019626,2]
[363915454,1748923845595,-271.0,0.00019631,2]
[363915455,1748923845607,-502.64044232,0.00019725,2]
[363915456,1748923845617,-440.0,0.00019726,2]
[363915457,1748923845629,-440.0,0.00019726,2]
[363915458,1748923845640,-440.0,0.00019726,2]
[363915459,1748923845649,-1574.72,0.00019726,2]
[363915460,1748923845660,-1596.37,0.00019726,2]
[363915461,1748923845671,-440.0,0.00019726,2]
[363915462,1748923845681,-909.41,0.00019726,2]
[363915463,1748923845691,-1584.27,0.00019726,2]
[363915464,1748923845700,-931.22,0.00019726,2]
[363915465,1748923845710,-694.71,0.00019726,2]
[363915466,1748923845720,-1347.42,0.00019726,2]
[363915467,1748923845730,-440.0,0.00019726,2]
[363915468,1748923845739,-570.89,0.00019726,2]
[363915469,1748923845749,-455.6,0.00019726,2]
[363915470,1748923845759,-550.28,0.00019726,2]
[363915471,1748923845769,-644.57,0.00019726,2]
[363915472,1748923845779,-440.0,0.00019726,2]
[363915473,1748923845788,-365.71,0.00019726,2]
[363915474,1748923845798,-658.84,0.00019726,2]
[363915475,1748923845807,-1350.0,0.00019726,2]
[363915476,1748923845817,-500.9688298,0.00019764,2]
[363915477,1748923845827,-1473.3717005,0.00019797,2]
[363915478,1748923845837,-379.0,0.00019827,2]
[363915479,1748923845846,-532.46122988,0.000199,2]
[363915480,1748923845856,-151.530294,0.00019942,2]
[363915481,1748923845865,-501.43291838,0.00019942,2]
[363915482,1748923845875,-502.08484922,0.00019942,2]
[363915483,1748923845884,-500.0,0.00019942,2]
[363915484,1748923845894,-500.0,0.00019942,2]
[363915485,1748923845903,-500.0,0.00019942,2]
[363915486,1748923845912,-439.75392912,0.00019942,2]
[363915487,1748923845922,-501.66252973,0.00019942,2]
[363915488,1748923845931,-500.0,0.00019942,2]
[363915489,1748923845941,-500.0,0.00019942,2]
[363915490,1748923845950,-500.0,0.00019942,2]
[363915491,1748923845960,-503.51093668,0.00019942,2]
[363915492,1748923845970,-500.0,0.00019942,2]
[363915493,1748923845979,-500.0,0.00019942,2]
[363915494,1748923845989,-700.0,0.00019964,2]
[363915495,1748923845999,-189.47995318,0.0002,2]
[363915497,1748923846008,-440.0,0.0002,2]
[363915499,1748923846019,-440.0,0.0002,2]
[363915501,1748923846028,-222.24109437,0.0002,2]
[363915502,1748923846039,-1574.72,0.0002,2]
[363915503,1748923846048,-1596.37,0.0002,2]
[363915504,1748923846058,-440.0,0.0002,2]
[363915505,1748923846069,-909.41,0.0002,2]
[363915506,1748923846079,-1584.27,0.0002,2]
[363915507,1748923846089,-931.22,0.0002,2]
[363915508,1748923846099,-694.71,0.0002,2]
[363915509,1748923846108,-1347.42,0.0002,2]
[363915510,1748923846119,-440.0,0.0002,2]
[363915511,1748923846129,-570.89,0.0002,2]
[363915512,1748923846140,-455.6,0.0002,2]
[363915513,1748923846152,-301.09577758,0.0002,2]
[363915514,1748923846163,-550.28,0.0002,2]
[363915515,1748923846174,-644.57,0.0002,2]
[363915516,1748923846184,-440.0,0.0002,2]
[363915517,1748923846195,-658.84,0.0002,2]
[363915518,1748923846205,-1350.0,0.0002,2]
[363915520,1748923846215,-1473.3717005,0.00020038,2]
[363915521,1748923846226,-228.677562,0.00020187,2]
[363915522,1748923846236,-370.99521261,0.00020273,2]
[363915523,1748923846246,-440.0,0.00020273,2]
[363915524,1748923846256,-1574.72,0.00020273,2]
[363915525,1748923846266,-1596.37,0.00020273,2]
[363915526,1748923846276,-265.64,0.00020273,2]
[363915527,1748923846286,-909.41,0.00020273,2]
[363915528,1748923846296,-1584.27,0.00020273,2]
[363915529,1748923846306,-931.22,0.00020273,2]
[363915530,1748923846316,-694.71,0.00020273,2]
[363915531,1748923846334,-1347.42,0.00020273,2]
[363915532,1748923846344,-209.01,0.00020273,2]
[363915533,1748923846354,-570.89,0.00020273,2]
[363915535,1748923846363,-455.6,0.00020273,2]
[363915536,1748923846373,-550.28,0.00020273,2]
[363915537,1748923846384,-644.57,0.00020273,2]
[363915538,1748923846394,-440.0,0.00020273,2]
[363915539,1748923846403,-658.84,0.00020273,2]
[363915540,1748923846413,-1350.0,0.00020273,2]
[363915541,1748923846423,-1473.3717005,0.00020279,3]
[363915542,1748923846432,-1000.0,0.0002049,2]
[363915543,1748923846443,-502.7778796,0.0002049,2]
[363915544,1748923846452,-505.78867747,0.0002049,2]
[363915545,1748923846462,-1004.42654874,0.0002049,2]
[363915546,1748923846472,-1000.0,0.0002049,2]
[363915547,1748923846482,-519.70268838,0.0002049,2]
[363915548,1748923846491,-505.73318035,0.0002049,2]
[363915549,1748923846501,-1000.0,0.0002049,2]
[363915550,1748923846510,-439.475391,0.0002049,2]
[363915551,1748923846519,-1473.3717005,0.00020521,3]
[363915552,1748923846529,-440.0,0.00020547,2]
[363915553,1748923846538,-1574.72,0.00020547,2]
[363915554,1748923846550,-1596.37,0.00020547,2]
[363915555,1748923846561,-909.41,0.00020547,2]
[363915556,1748923846575,-1584.27,0.00020547,2]
[363915557,1748923846585,-931.22,0.00020547,2]
[363915558,1748923846595,-694.71,0.00020547,2]
[363915559,1748923846604,-1347.42,0.00020547,2]
[363915560,1748923846614,-570.89,0.00020547,2]
[363915561,1748923846624,-455.6,0.00020547,2]
[363915562,1748923846635,-550.28,0.00020547,2]
[363915563,1748923846645,-644.57,0.00020547,2]
[363915564,1748923846654,-440.0,0.00020547,2]
[363915565,1748923846663,-658.84,0.00020547,2]
[363915566,1748923846673,-825.7,0.000206,2]
[363915567,1748923846683,-1578.8,0.000206,2]
[363915568,1748923846692,-51646.92,0.000206,2]
[363915569,1748923846702,-2096.16961245,0.00020647,2]
[363915570,1748923846712,-1473.3717005,0.00020762,3]
[363915571,1748923846722,-440.0,0.00020821,2]
[363915572,1748923846732,-1574.72,0.00020821,2]
[363915573,1748923846742,-1596.37,0.00020821,2]
[363915574,1748923846751,-909.41,0.00020821,2]
[363915575,1748923846761,-1584.27,0.00020821,2]
[363915576,1748923846771,-931.22,0.00020821,2]
[363915577,1748923846780,-694.71,0.00020821,2]
[363915578,1748923846790,-1347.42,0.00020821,2]
[363915579,1748923846799,-570.89,0.00020821,2]
[363915580,1748923846809,-455.6,0.00020821,2]
[363915581,1748923846820,-550.28,0.00020821,2]
[363915582,1748923846830,-644.57,0.00020821,2]
[363915583,1748923846839,-440.0,0.00020821,2]
[363915584,1748923846849,-658.84,0.00020821,2]
[363915585,1748923846859,-882.37572583,0.00020922,2]
[363915586,1748923846869,-151.0,0.00020974,2]
[363915587,1748923846878,-152.37664978,0.00020974,2]
[363915588,1748923846888,-207.4,0.00020974,2]
[363915589,1748923846897,-500.0,0.00020974,2]
[363915590,1748923846907,-500.0,0.00020974,2]
[363915591,1748923846917,-500.0,0.00020974,2]
[363915592,1748923846927,-500.0,0.00020974,2]
[363915593,1748923846938,-500.0,0.00020974,2]
[363915594,1748923846948,-500.0,0.00020974,2]
[363915595,1748923846958,-5000.0,0.00020974,2]
[363915596,1748923846968,-500.0,0.00020974,2]
[363915597,1748923846977,-500.0,0.00020974,2]
[363915598,1748923846987,-3898.2834867,0.00020974,2]
[363915599,1748923846997,-500.0,0.00020974,2]
[363915600,1748923847007,-500.0,0.00020974,2]
[363915601,1748923847016,-500.0,0.00020974,2]
[363915602,1748923847026,-500.0,0.00020974,2]
[363915603,1748923847037,-500.0,0.00020974,2]
[363915604,1748923847046,-500.0,0.00020974,2]
[363915605,1748923847056,-500.0,0.00020974,2]
[363915606,1748923847066,-500.0,0.00020974,2]
[363915607,1748923847077,-3000.0,0.00021,2]
[363915608,1748923847087,-1473.3717005,0.00021003,4]
[363915609,1748923847097,-3000.0,0.0002101,2]
[363915610,1748923847107,-3000.0,0.0002102,2]
[363915611,1748923847117,-3000.0,0.0002103,2]
[363915612,1748923847127,-1500.0,0.00021038,2]
[363915613,1748923847137,-1100.0,0.00021038,2]
[363915614,1748923847146,-506.27683546,0.00021038,2]
[363915615,1748923847157,-3000.0,0.0002104,2]
[363915616,1748923847167,-3000.0,0.0002105,2]
[363915617,1748923847176,-3000.0,0.0002106,2]
[363915618,1748923847186,-700.0,0.0002106,2]
[363915619,1748923847195,-4504.130147,0.0002107,2]
[363915620,1748923847203,-340.0,0.00021095,2]
[363915621,1748923847213,-1574.72,0.00021095,2]
[363915622,1748923847223,-1596.37,0.00021095,2]
[363915623,1748923847233,-909.41,0.00021095,2]
[363915624,1748923847243,-1584.27,0.00021095,2]
[363915625,1748923847253,-931.22,0.00021095,2]
[363915626,1748923847263,-694.71,0.00021095,2]
[363915627,1748923847273,-1347.42,0.00021095,2]
[363915628,1748923847283,-570.89,0.00021095,2]
[363915629,1748923847293,-455.6,0.00021095,2]
[363915630,1748923847303,-550.28,0.00021095,2]
[363915631,1748923847313,-644.57,0.00021095,2]
[363915632,1748923847325,-440.0,0.00021095,2]
[363915633,1748923847335,-658.84,0.00021095,2]
[363915634,1748923847346,-1000.0,0.00021182,5]
[363915635,1748923847355,-1473.3717005,0.00021245,4]
[363915636,1748923847365,-500.0,0.00021368,2]
[363915637,1748923847374,-152.56836936,0.00021368,2]
[363915638,1748923847384,-303.51481384,0.00021368,2]
[363915639,1748923847394,-501.13233686,0.00021368,2]
[363915640,1748923847403,-500.0,0.00021368,2]
[363915641,1748923847413,-280.43071213,0.00021368,2]
[363915642,1748923847423,-501.77325868,0.00021368,2]
[363915643,1748923847433,-502.13735262,0.00021368,2]
[363915644,1748923847442,-1574.72,0.00021369,2]
[363915645,1748923847453,-1596.37,0.00021369,2]
[363915646,1748923847462,-909.41,0.00021369,2]
[363915647,1748923847472,-1584.27,0.00021369,2]
[363915648,1748923847482,-931.22,0.00021369,2]
[363915649,1748923847492,-694.71,0.00021369,2]